[Event "Titled Tuesday Blitz January 31 Late 2023"]
[White "Drnovsek, Gal"]
[Black "Mosquera, Miguel"]
[WhiteFideId "14607077"]
[BlackFideId "4401131"]
[WhiteElo "2397"]
[BlackElo "2371"]
[Result "1-0"]
[Round "08"]
[TimeControl "180+2"]
[Date "2023.01.31"]
[WhiteClock "0:01:47"]
[BlackClock "0:00:14"]

1. e4 {[%clk 0:02:57]}  c5 {[%clk 0:02:59]} 2. c3 {[%clk 0:02:57]}  Nf6 {[%clk 0:02:50]} 3. e5 {[%clk 0:02:54]}  Nd5 {[%clk 0:02:50]} 4. d4 {[%clk 0:02:55]}  e6 {[%clk 0:02:42]} 5. Nf3 {[%clk 0:02:55]}  Nc6 {[%clk 0:02:40]} 6. Bc4 {[%clk 0:02:54]}  Nb6 {[%clk 0:02:40]} 7. Bb3 {[%clk 0:02:53]}  c4 {[%clk 0:02:39]} 8. Bc2 {[%clk 0:02:52]}  d6 {[%clk 0:02:36]} 9. exd6 {[%clk 0:02:51]}  Bxd6 {[%clk 0:02:36]} 10. O-O {[%clk 0:02:52]}  Qc7 {[%clk 0:02:35]} 11. b3 {[%clk 0:02:51]}  Bd7 {[%clk 0:02:18]} 12. Nbd2 {[%clk 0:02:48]}  Ne7 {[%clk 0:02:03]} 13. Ne4 {[%clk 0:02:45]}  O-O-O {[%clk 0:01:50]} 14. Nxd6+ {[%clk 0:02:42]}  Qxd6 {[%clk 0:01:50]} 15. a4 {[%clk 0:02:42]}  Kb8 {[%clk 0:01:23]} 16. Ba3 {[%clk 0:02:40]}  Qc7 {[%clk 0:01:11]} 17. Bxe7 {[%clk 0:02:40]}  Rde8 {[%clk 0:01:11]} 18. Bh4 {[%clk 0:02:39]}  f5 {[%clk 0:01:10]} 19. a5 {[%clk 0:02:31]}  Nd5 {[%clk 0:01:08]} 20. bxc4 {[%clk 0:02:31]}  Nxc3 {[%clk 0:00:58]} 21. Qd2 {[%clk 0:02:24]}  Qxc4 {[%clk 0:00:57]} 22. Bg3+ {[%clk 0:02:23]}  Ka8 {[%clk 0:00:56]} 23. Bd3 {[%clk 0:02:21]}  Qb3 {[%clk 0:00:32]} 24. a6 {[%clk 0:02:17]}  Ne4 {[%clk 0:00:24]} 25. axb7+ {[%clk 0:02:15]}  Qxb7 {[%clk 0:00:23]} 26. Bxe4 {[%clk 0:02:13]}  fxe4 {[%clk 0:00:23]} 27. Ne5 {[%clk 0:02:11]}  Bb5 {[%clk 0:00:19]} 28. Rfb1 {[%clk 0:02:10]}  a6 {[%clk 0:00:19]} 29. Qa5 {[%clk 0:02:09]}  Rb8 {[%clk 0:00:17]} 30. Nc4 {[%clk 0:01:56]}  Ka7 {[%clk 0:00:16]} 31. Bxb8+ {[%clk 0:01:52]}  Rxb8 {[%clk 0:00:17]} 32. Nd6 {[%clk 0:01:50]}  Qc6 {[%clk 0:00:15]} 33. Nxb5+ {[%clk 0:01:49]}  Rxb5 {[%clk 0:00:14]} 34. Qxb5 {[%clk 0:01:47]} 1-0


[Site "https://www.chess.com"]

[Event "Titled Tuesday Blitz January 31 Late 2023"]
[White "Forgacs, Attila Jr."]
[Black "Zhou, Qiyu"]
[WhiteFideId "773654"]
[BlackFideId "505161"]
[WhiteElo "2264"]
[BlackElo "2201"]
[Result "1-0"]
[Round "08"]
[TimeControl "180+2"]
[Date "2023.01.31"]
[WhiteClock "0:00:23"]
[BlackClock "0:00:14"]

1. e4 {[%clk 0:03:00]}  e5 {[%clk 0:02:57]} 2. Nf3 {[%clk 0:03:00]}  Nc6 {[%clk 0:02:56]} 3. Bb5 {[%clk 0:03:00]}  a6 {[%clk 0:02:56]} 4. Ba4 {[%clk 0:03:00]}  Nf6 {[%clk 0:02:54]} 5. O-O {[%clk 0:03:00]}  b5 {[%clk 0:02:54]} 6. Bb3 {[%clk 0:03:00]}  Be7 {[%clk 0:02:53]} 7. d4 {[%clk 0:03:00]}  d6 {[%clk 0:02:52]} 8. dxe5 {[%clk 0:02:40]}  dxe5 {[%clk 0:02:53]} 9. Bd5 {[%clk 0:02:30]}  Bb7 {[%clk 0:02:43]} 10. Nc3 {[%clk 0:02:30]}  O-O {[%clk 0:02:38]} 11. Bxc6 {[%clk 0:02:27]}  Bxc6 {[%clk 0:02:39]} 12. Nxe5 {[%clk 0:02:27]}  Bxe4 {[%clk 0:02:32]} 13. Nxe4 {[%clk 0:02:26]}  Nxe4 {[%clk 0:02:30]} 14. Nc6 {[%clk 0:02:25]}  Qd6 {[%clk 0:02:14]} 15. Nxe7+ {[%clk 0:02:21]}  Qxe7 {[%clk 0:02:14]} 16. Qe2 {[%clk 0:02:21]}  Rfe8 {[%clk 0:02:05]} 17. Re1 {[%clk 0:02:18]}  Qe6 {[%clk 0:02:01]} 18. Bf4 {[%clk 0:02:12]}  c5 {[%clk 0:01:57]} 19. f3 {[%clk 0:02:09]}  Nf6 {[%clk 0:01:55]} 20. Qxe6 {[%clk 0:02:08]}  fxe6 {[%clk 0:01:56]} 21. Rad1 {[%clk 0:02:05]}  Nd5 {[%clk 0:01:54]} 22. Be5 {[%clk 0:02:04]}  c4 {[%clk 0:01:53]} 23. Bd4 {[%clk 0:01:56]}  Rad8 {[%clk 0:01:47]} 24. c3 {[%clk 0:01:56]}  Kf7 {[%clk 0:01:44]} 25. Re5 {[%clk 0:01:55]}  Nf6 {[%clk 0:01:43]} 26. Rde1 {[%clk 0:01:52]}  Rd5 {[%clk 0:01:39]} 27. R5e2 {[%clk 0:01:40]}  e5 {[%clk 0:01:22]} 28. Rxe5 {[%clk 0:01:27]}  Rdxe5 {[%clk 0:01:20]} 29. Rxe5 {[%clk 0:01:27]}  Rxe5 {[%clk 0:01:20]} 30. Bxe5 {[%clk 0:01:27]}  Nd5 {[%clk 0:01:21]} 31. Kf2 {[%clk 0:01:23]}  g6 {[%clk 0:01:20]} 32. g3 {[%clk 0:01:18]}  Ke6 {[%clk 0:01:20]} 33. Bd4 {[%clk 0:01:18]}  b4 {[%clk 0:01:13]} 34. cxb4 {[%clk 0:01:10]}  Nxb4 {[%clk 0:01:14]} 35. a3 {[%clk 0:01:09]}  Nd3+ {[%clk 0:01:14]} 36. Ke2 {[%clk 0:01:08]}  Kd5 {[%clk 0:01:15]} 37. Bc3 {[%clk 0:01:07]}  Nc1+ {[%clk 0:01:11]} 38. Ke3 {[%clk 0:01:05]}  Nd3 {[%clk 0:01:10]} 39. f4 {[%clk 0:01:03]}  Nc5 {[%clk 0:01:07]} 40. g4 {[%clk 0:01:01]}  Ne4 {[%clk 0:01:06]} 41. f5 {[%clk 0:00:54]}  gxf5 {[%clk 0:00:46]} 42. gxf5 {[%clk 0:00:55]}  Ng5 {[%clk 0:00:44]} 43. f6 {[%clk 0:00:52]}  Nf7 {[%clk 0:00:44]} 44. Kf4 {[%clk 0:00:49]}  Ke6 {[%clk 0:00:38]} 45. Ke4 {[%clk 0:00:47]}  Ng5+ {[%clk 0:00:35]} 46. Ke3 {[%clk 0:00:42]}  Nf7 {[%clk 0:00:30]} 47. a4 {[%clk 0:00:32]}  Nd6 {[%clk 0:00:23]} 48. a5 {[%clk 0:00:31]}  Nb7 {[%clk 0:00:19]} 49. Ke4 {[%clk 0:00:24]}  Nd6+ {[%clk 0:00:18]} 50. Kd4 {[%clk 0:00:23]}  Kxf6 {[%clk 0:00:18]} 51. Kd5+ {[%clk 0:00:23]}  Ke7 {[%clk 0:00:16]} 52. Bb4 {[%clk 0:00:23]}  Kd7 {[%clk 0:00:14]} 1-0


[Site "https://www.chess.com"]

[Event "Titled Tuesday Blitz January 31 Late 2023"]
[White "kiwibobo"]
[Black "Abdyzhaparov, Aidar"]
[BlackFideId "13800361"]
[WhiteElo "2087"]
[BlackElo "1978"]
[Result "1-0"]
[Round "08"]
[TimeControl "180+2"]
[Date "2023.01.31"]
[WhiteClock "0:00:21"]
[BlackClock "0:01:18"]

1. e4 {[%clk 0:02:54]}  d6 {[%clk 0:03:00]} 2. d4 {[%clk 0:02:54]}  Nf6 {[%clk 0:03:01]} 3. Nc3 {[%clk 0:02:54]}  e5 {[%clk 0:03:02]} 4. Nf3 {[%clk 0:02:54]}  Nbd7 {[%clk 0:03:02]} 5. Bc4 {[%clk 0:02:53]}  Be7 {[%clk 0:03:02]} 6. O-O {[%clk 0:02:53]}  O-O {[%clk 0:03:02]} 7. a4 {[%clk 0:02:51]}  c6 {[%clk 0:03:02]} 8. h3 {[%clk 0:02:50]}  b6 {[%clk 0:03:03]} 9. Qe2 {[%clk 0:02:39]}  a6 {[%clk 0:03:02]} 10. Nh4 {[%clk 0:02:38]}  exd4 {[%clk 0:03:00]} 11. Nb1 {[%clk 0:02:37]}  Ne5 {[%clk 0:02:59]} 12. Bb3 {[%clk 0:02:35]}  c5 {[%clk 0:02:54]} 13. c3 {[%clk 0:02:33]}  d3 {[%clk 0:02:51]} 14. Qe3 {[%clk 0:02:27]}  c4 {[%clk 0:02:51]} 15. Bd1 {[%clk 0:02:26]}  Nxe4 {[%clk 0:02:39]} 16. Qxe4 {[%clk 0:02:23]}  Bxh4 {[%clk 0:02:39]} 17. Qxa8 {[%clk 0:02:22]}  Qf6 {[%clk 0:02:28]} 18. Qe4 {[%clk 0:02:02]}  Bf5 {[%clk 0:02:28]} 19. Qf4 {[%clk 0:01:46]}  g5 {[%clk 0:02:27]} 20. Qd4 {[%clk 0:01:44]}  Qg6 {[%clk 0:02:16]} 21. Kh2 {[%clk 0:01:23]}  g4 {[%clk 0:02:14]} 22. g3 {[%clk 0:01:20]}  gxh3 {[%clk 0:02:11]} 23. Qxh4 {[%clk 0:01:18]}  Ng4+ {[%clk 0:02:01]} 24. Bxg4 {[%clk 0:01:17]}  Bxg4 {[%clk 0:02:01]} 25. Qg5 {[%clk 0:01:16]}  h5 {[%clk 0:02:01]} 26. Qxg6+ {[%clk 0:01:16]}  fxg6 {[%clk 0:02:02]} 27. Be3 {[%clk 0:01:14]}  d5 {[%clk 0:01:59]} 28. Nd2 {[%clk 0:01:12]}  b5 {[%clk 0:01:56]} 29. axb5 {[%clk 0:01:11]}  axb5 {[%clk 0:01:57]} 30. Ra6 {[%clk 0:01:11]}  Kh7 {[%clk 0:01:55]} 31. Rd6 {[%clk 0:01:09]}  Be2 {[%clk 0:01:53]} 32. Re1 {[%clk 0:00:59]}  g5 {[%clk 0:01:53]} 33. Kxh3 {[%clk 0:00:57]}  h4 {[%clk 0:01:50]} 34. Rxd5 {[%clk 0:00:53]}  hxg3 {[%clk 0:01:47]} 35. Kxg3 {[%clk 0:00:52]}  Kg6 {[%clk 0:01:47]} 36. Rxg5+ {[%clk 0:00:52]}  Kf6 {[%clk 0:01:47]} 37. Rxb5 {[%clk 0:00:49]}  Ke6 {[%clk 0:01:46]} 38. f4 {[%clk 0:00:44]}  Rh8 {[%clk 0:01:44]} 39. Nxc4 {[%clk 0:00:42]}  Kd7 {[%clk 0:01:40]} 40. Bd2 {[%clk 0:00:42]}  Kc6 {[%clk 0:01:39]} 41. Re5 {[%clk 0:00:41]}  Rg8+ {[%clk 0:01:37]} 42. Kf2 {[%clk 0:00:40]}  Rh8 {[%clk 0:01:37]} 43. R5xe2 {[%clk 0:00:39]}  dxe2 {[%clk 0:01:35]} 44. Kxe2 {[%clk 0:00:40]}  Kd5 {[%clk 0:01:36]} 45. Kd3 {[%clk 0:00:40]}  Rh3+ {[%clk 0:01:35]} 46. Re3 {[%clk 0:00:38]}  Rh2 {[%clk 0:01:36]} 47. Re5+ {[%clk 0:00:37]}  Kc6 {[%clk 0:01:36]} 48. f5 {[%clk 0:00:36]}  Rh3+ {[%clk 0:01:36]} 49. Ne3 {[%clk 0:00:36]}  Kd6 {[%clk 0:01:36]} 50. Re6+ {[%clk 0:00:36]}  Kd7 {[%clk 0:01:36]} 51. Kd4 {[%clk 0:00:35]}  Rh4+ {[%clk 0:01:36]} 52. Kd5 {[%clk 0:00:35]}  Rh2 {[%clk 0:01:36]} 53. Nc4 {[%clk 0:00:33]}  Rh3 {[%clk 0:01:36]} 54. Rd6+ {[%clk 0:00:30]}  Ke7 {[%clk 0:01:35]} 55. Bg5+ {[%clk 0:00:30]}  Kf8 {[%clk 0:01:32]} 56. Rd7 {[%clk 0:00:27]}  Ke8 {[%clk 0:01:27]} 57. Ke6 {[%clk 0:00:20]}  Rh6+ {[%clk 0:01:23]} 58. f6 {[%clk 0:00:20]}  Rh1 {[%clk 0:01:19]} 59. f7+ {[%clk 0:00:18]}  Kf8 {[%clk 0:01:18]} 60. Rd8+ {[%clk 0:00:19]}  Kg7 {[%clk 0:01:18]} 61. f8=Q+ {[%clk 0:00:19]}  Kg6 {[%clk 0:01:19]} 62. Qf7+ {[%clk 0:00:19]}  Kxg5 {[%clk 0:01:18]} 63. Rg8+ {[%clk 0:00:20]}  Kh6 {[%clk 0:01:18]} 64. Qg7+ {[%clk 0:00:21]}  Kh5 {[%clk 0:01:18]} 65. Qh7# {[%clk 0:00:21]} 1-0


[Site "https://www.chess.com"]

[Event "Titled Tuesday Blitz January 31 Late 2023"]
[White "Desideri, Ricardo Maruchi"]
[Black "Rian, Kapriaga"]
[WhiteFideId "2110440"]
[BlackFideId "7103263"]
[WhiteElo "1959"]
[BlackElo "2089"]
[Result "1-0"]
[Round "08"]
[TimeControl "180+2"]
[Date "2023.01.31"]
[WhiteClock "0:00:03"]
[BlackClock "0:00:01"]

1. e4 {[%clk 0:03:00]}  c6 {[%clk 0:02:59]} 2. d4 {[%clk 0:03:00]}  d5 {[%clk 0:02:59]} 3. e5 {[%clk 0:03:00]}  Bf5 {[%clk 0:02:58]} 4. h4 {[%clk 0:03:00]}  h5 {[%clk 0:02:57]} 5. Bd3 {[%clk 0:02:59]}  Bxd3 {[%clk 0:02:57]} 6. Qxd3 {[%clk 0:03:00]}  e6 {[%clk 0:02:56]} 7. Bg5 {[%clk 0:02:55]}  Qb6 {[%clk 0:02:55]} 8. b3 {[%clk 0:02:44]}  c5 {[%clk 0:02:51]} 9. Nf3 {[%clk 0:02:36]}  Nc6 {[%clk 0:02:49]} 10. c3 {[%clk 0:02:19]}  cxd4 {[%clk 0:02:48]} 11. cxd4 {[%clk 0:02:17]}  Rc8 {[%clk 0:02:45]} 12. O-O {[%clk 0:02:16]}  Nge7 {[%clk 0:02:40]} 13. a3 {[%clk 0:02:13]}  Nf5 {[%clk 0:02:39]} 14. Rc1 {[%clk 0:02:04]}  Be7 {[%clk 0:02:26]} 15. Bxe7 {[%clk 0:02:00]}  Kxe7 {[%clk 0:02:24]} 16. Rc5 {[%clk 0:01:46]}  Ncxd4 {[%clk 0:02:16]} 17. Nxd4 {[%clk 0:01:32]}  Rxc5 {[%clk 0:02:04]} 18. Nxf5+ {[%clk 0:01:29]}  exf5 {[%clk 0:02:03]} 19. Nd2 {[%clk 0:01:26]}  g6 {[%clk 0:01:55]} 20. b4 {[%clk 0:01:16]}  Rc7 {[%clk 0:01:47]} 21. Nf3 {[%clk 0:00:30]}  Rd8 {[%clk 0:01:41]} 22. Nd4 {[%clk 0:00:29]}  Rc4 {[%clk 0:01:38]} 23. Nb3 {[%clk 0:00:24]}  Kf8 {[%clk 0:01:25]} 24. Nc5 {[%clk 0:00:23]}  Kg8 {[%clk 0:01:18]} 25. Re1 {[%clk 0:00:19]}  Rxc5 {[%clk 0:01:05]} 26. bxc5 {[%clk 0:00:19]}  Qxc5 {[%clk 0:01:06]} 27. e6 {[%clk 0:00:18]}  fxe6 {[%clk 0:01:04]} 28. Rxe6 {[%clk 0:00:18]}  Qc1+ {[%clk 0:01:03]} 29. Kh2 {[%clk 0:00:16]}  Qf4+ {[%clk 0:01:02]} 30. g3 {[%clk 0:00:16]}  Qxf2+ {[%clk 0:01:02]} 31. Kh3 {[%clk 0:00:15]}  Kf7 {[%clk 0:00:59]} 32. Re2 {[%clk 0:00:13]}  Qf1+ {[%clk 0:00:56]} 33. Kh2 {[%clk 0:00:10]}  f4 {[%clk 0:00:18]} 34. Re7+ {[%clk 0:00:09]}  Kxe7 {[%clk 0:00:17]} 35. Qxf1 {[%clk 0:00:10]}  fxg3+ {[%clk 0:00:17]} 36. Kxg3 {[%clk 0:00:10]}  d4 {[%clk 0:00:18]} 37. Qe2+ {[%clk 0:00:09]}  Kf7 {[%clk 0:00:17]} 38. Qf3+ {[%clk 0:00:09]}  Ke7 {[%clk 0:00:15]} 39. Qd3 {[%clk 0:00:09]}  Rd6 {[%clk 0:00:14]} 40. Kf4 {[%clk 0:00:09]}  Ke6 {[%clk 0:00:13]} 41. Kg5 {[%clk 0:00:09]}  Kd5 {[%clk 0:00:13]} 42. Qb5+ {[%clk 0:00:07]}  Ke4 {[%clk 0:00:13]} 43. Qxb7+ {[%clk 0:00:07]}  Kd3 {[%clk 0:00:11]} 44. Qb3+ {[%clk 0:00:06]}  Ke4 {[%clk 0:00:08]} 45. Qb7+ {[%clk 0:00:06]}  Kd3 {[%clk 0:00:08]} 46. Qb1+ {[%clk 0:00:05]}  Ke3 {[%clk 0:00:03]} 47. Qe1+ {[%clk 0:00:05]}  Kd3 {[%clk 0:00:03]} 48. Qf1+ {[%clk 0:00:04]}  Kc3 {[%clk 0:00:01]} 49. Qh3+ {[%clk 0:00:03]} 1-0


[Site "https://www.chess.com"]

[Event "Titled Tuesday Blitz January 31 Late 2023"]
[White "Harish, Neeraj"]
[Black "Corredor Castellanos, Camilo"]
[WhiteFideId "30958130"]
[BlackFideId "4425871"]
[WhiteElo "2232"]
[BlackElo "1957"]
[Result "0-1"]
[Round "08"]
[TimeControl "180+2"]
[Date "2023.01.31"]
[WhiteClock "0:00:50"]
[BlackClock "0:01:48"]

1. e4 {[%clk 0:03:00]}  c5 {[%clk 0:02:59]} 2. Nf3 {[%clk 0:03:00]}  d6 {[%clk 0:02:59]} 3. d4 {[%clk 0:03:00]}  cxd4 {[%clk 0:03:00]} 4. Nxd4 {[%clk 0:03:01]}  Nf6 {[%clk 0:03:01]} 5. Nc3 {[%clk 0:03:01]}  a6 {[%clk 0:03:01]} 6. Be3 {[%clk 0:03:00]}  Ng4 {[%clk 0:03:00]} 7. Bg5 {[%clk 0:02:59]}  h6 {[%clk 0:03:00]} 8. Bh4 {[%clk 0:02:59]}  g5 {[%clk 0:03:00]} 9. Bg3 {[%clk 0:02:59]}  Nf6 {[%clk 0:03:00]} 10. Qd2 {[%clk 0:02:53]}  Nbd7 {[%clk 0:02:59]} 11. O-O-O {[%clk 0:02:53]}  Nh5 {[%clk 0:02:55]} 12. Be2 {[%clk 0:02:48]}  Nxg3 {[%clk 0:02:53]} 13. hxg3 {[%clk 0:02:49]}  Bg7 {[%clk 0:02:54]} 14. Kb1 {[%clk 0:02:48]}  Nc5 {[%clk 0:02:49]} 15. f4 {[%clk 0:02:35]}  gxf4 {[%clk 0:02:46]} 16. gxf4 {[%clk 0:02:35]}  b5 {[%clk 0:02:45]} 17. Nb3 {[%clk 0:02:16]}  Na4 {[%clk 0:02:37]} 18. Nxa4 {[%clk 0:02:10]}  bxa4 {[%clk 0:02:38]} 19. Nd4 {[%clk 0:02:10]}  Rb8 {[%clk 0:02:35]} 20. c3 {[%clk 0:01:57]}  Qb6 {[%clk 0:02:33]} 21. g4 {[%clk 0:01:39]}  a5 {[%clk 0:02:16]} 22. e5 {[%clk 0:01:39]}  dxe5 {[%clk 0:02:13]} 23. Nc6 {[%clk 0:01:32]}  Bf5+ {[%clk 0:02:08]} 24. gxf5 {[%clk 0:01:32]}  Qxc6 {[%clk 0:02:08]} 25. fxe5 {[%clk 0:01:00]}  a3 {[%clk 0:02:07]} 26. b3 {[%clk 0:00:58]}  Bxe5 {[%clk 0:02:06]} 27. Bc4 {[%clk 0:00:51]}  a4 {[%clk 0:01:53]} 28. Rxh6 {[%clk 0:00:50]}  Rxh6 {[%clk 0:01:48]} 0-1


[Site "https://www.chess.com"]

[Event "Titled Tuesday Blitz January 31 Late 2023"]
[White "Good, Daniel"]
[Black "Almedina Ortiz, Edgardo J."]
[WhiteFideId "1302388"]
[BlackFideId "3100197"]
[WhiteElo "2141"]
[BlackElo "2156"]
[Result "1-0"]
[Round "08"]
[TimeControl "180+2"]
[Date "2023.01.31"]
[WhiteClock "0:00:04"]
[BlackClock "0:00:02"]

1. e4 {[%clk 0:02:59]}  c5 {[%clk 0:02:58]} 2. Nf3 {[%clk 0:02:57]}  e6 {[%clk 0:02:58]} 3. d4 {[%clk 0:02:57]}  cxd4 {[%clk 0:02:59]} 4. Nxd4 {[%clk 0:02:57]}  Nc6 {[%clk 0:02:58]} 5. Be3 {[%clk 0:02:57]}  Nf6 {[%clk 0:02:56]} 6. Nc3 {[%clk 0:02:57]}  Bb4 {[%clk 0:02:46]} 7. Be2 {[%clk 0:02:36]}  Nxe4 {[%clk 0:02:41]} 8. Nxc6 {[%clk 0:02:34]}  bxc6 {[%clk 0:02:35]} 9. Qd4 {[%clk 0:02:31]}  Bxc3+ {[%clk 0:02:13]} 10. bxc3 {[%clk 0:02:30]}  Qf6 {[%clk 0:02:12]} 11. O-O {[%clk 0:01:33]}  Nxc3 {[%clk 0:02:10]} 12. Bf3 {[%clk 0:01:24]}  Nd5 {[%clk 0:01:53]} 13. Bxd5 {[%clk 0:01:16]}  cxd5 {[%clk 0:01:49]} 14. Qb4 {[%clk 0:01:13]}  Ba6 {[%clk 0:01:32]} 15. Rfe1 {[%clk 0:01:09]}  Qg6 {[%clk 0:01:02]} 16. Bc1 {[%clk 0:00:54]}  f5 {[%clk 0:00:30]} 17. Ba3 {[%clk 0:00:48]}  Qf6 {[%clk 0:00:27]} 18. Qd6 {[%clk 0:00:43]}  Bb5 {[%clk 0:00:20]} 19. Rab1 {[%clk 0:00:40]}  a6 {[%clk 0:00:19]} 20. Bb2 {[%clk 0:00:17]}  Qe7 {[%clk 0:00:17]} 21. Qe5 {[%clk 0:00:14]}  O-O {[%clk 0:00:16]} 22. a4 {[%clk 0:00:11]}  Bxa4 {[%clk 0:00:15]} 23. Ra1 {[%clk 0:00:11]}  Bb5 {[%clk 0:00:13]} 24. Ba3 {[%clk 0:00:11]}  Qf6 {[%clk 0:00:12]} 25. Bxf8 {[%clk 0:00:11]}  Qxe5 {[%clk 0:00:10]} 26. Rxe5 {[%clk 0:00:10]}  Kxf8 {[%clk 0:00:10]} 27. h3 {[%clk 0:00:08]}  Rc8 {[%clk 0:00:10]} 28. Ra2 {[%clk 0:00:05]}  Bc4 {[%clk 0:00:05]} 29. Rb2 {[%clk 0:00:05]}  Ra8 {[%clk 0:00:02]} 30. g4 {[%clk 0:00:04]} 1-0


[Site "https://www.chess.com"]

[Event "Titled Tuesday Blitz January 31 Late 2023"]
[White "Romero Ruscalleda, Josep"]
[Black "Wilson, Elvin"]
[WhiteFideId "2231859"]
[BlackFideId "2014874"]
[WhiteElo "2160"]
[BlackElo "2183"]
[Result "0-1"]
[Round "08"]
[TimeControl "180+2"]
[Date "2023.01.31"]
[WhiteClock "0:00:01"]
[BlackClock "0:00:06"]

1. e4 {[%clk 0:03:00]}  e6 {[%clk 0:02:53]} 2. d4 {[%clk 0:03:00]}  d5 {[%clk 0:02:51]} 3. e5 {[%clk 0:03:01]}  c5 {[%clk 0:02:51]} 4. c3 {[%clk 0:03:01]}  Nc6 {[%clk 0:02:51]} 5. Be3 {[%clk 0:03:02]}  Nh6 {[%clk 0:02:49]} 6. Nf3 {[%clk 0:03:01]}  Nf5 {[%clk 0:02:49]} 7. Bd3 {[%clk 0:03:01]}  cxd4 {[%clk 0:02:46]} 8. cxd4 {[%clk 0:03:01]}  Qb6 {[%clk 0:02:39]} 9. Qd2 {[%clk 0:03:00]}  Bd7 {[%clk 0:02:37]} 10. Bxf5 {[%clk 0:02:57]}  exf5 {[%clk 0:02:37]} 11. Nc3 {[%clk 0:02:57]}  Be6 {[%clk 0:02:37]} 12. O-O {[%clk 0:02:57]}  h6 {[%clk 0:02:33]} 13. h4 {[%clk 0:02:56]}  Be7 {[%clk 0:02:33]} 14. Rac1 {[%clk 0:02:53]}  Qa5 {[%clk 0:02:03]} 15. a3 {[%clk 0:02:46]}  Kd7 {[%clk 0:01:57]} 16. Rc2 {[%clk 0:02:40]}  Rhc8 {[%clk 0:01:56]} 17. Rfc1 {[%clk 0:02:40]}  Qa6 {[%clk 0:01:51]} 18. Ne2 {[%clk 0:02:37]}  Na5 {[%clk 0:01:43]} 19. Nf4 {[%clk 0:02:13]}  Nb3 {[%clk 0:01:25]} 20. Qd1 {[%clk 0:02:00]}  Nxc1 {[%clk 0:01:23]} 21. Rxc1 {[%clk 0:02:01]}  Rxc1 {[%clk 0:01:21]} 22. Qxc1 {[%clk 0:02:00]}  Rc8 {[%clk 0:01:20]} 23. Qd2 {[%clk 0:02:00]}  Qc4 {[%clk 0:01:10]} 24. Nh5 {[%clk 0:01:58]}  Bf8 {[%clk 0:01:02]} 25. Kh2 {[%clk 0:01:47]}  b6 {[%clk 0:01:01]} 26. Ne1 {[%clk 0:01:14]}  a5 {[%clk 0:00:54]} 27. Nd3 {[%clk 0:00:57]}  Qc2 {[%clk 0:00:51]} 28. Nc5+ {[%clk 0:00:57]}  Rxc5 {[%clk 0:00:50]} 29. dxc5 {[%clk 0:00:57]}  Qxd2 {[%clk 0:00:46]} 30. Bxd2 {[%clk 0:00:57]}  bxc5 {[%clk 0:00:22]} 31. Bxa5 {[%clk 0:00:55]}  Kc6 {[%clk 0:00:21]} 32. a4 {[%clk 0:00:46]}  d4 {[%clk 0:00:21]} 33. Nf4 {[%clk 0:00:42]}  Bb3 {[%clk 0:00:21]} 34. Bd2 {[%clk 0:00:35]}  Bxa4 {[%clk 0:00:21]} 35. g3 {[%clk 0:00:30]}  Bc2 {[%clk 0:00:18]} 36. e6 {[%clk 0:00:27]}  g5 {[%clk 0:00:15]} 37. hxg5 {[%clk 0:00:19]}  hxg5 {[%clk 0:00:14]} 38. Nh3 {[%clk 0:00:19]}  fxe6 {[%clk 0:00:14]} 39. Bxg5 {[%clk 0:00:17]}  Kd5 {[%clk 0:00:13]} 40. Nf4+ {[%clk 0:00:16]}  Kd6 {[%clk 0:00:12]} 41. Bd8 {[%clk 0:00:15]}  e5 {[%clk 0:00:12]} 42. Ng6 {[%clk 0:00:15]}  Bg7 {[%clk 0:00:12]} 43. Be7+ {[%clk 0:00:14]}  Kd5 {[%clk 0:00:11]} 44. Kg2 {[%clk 0:00:14]}  e4 {[%clk 0:00:11]} 45. Nf4+ {[%clk 0:00:13]}  Kc4 {[%clk 0:00:11]} 46. Kf1 {[%clk 0:00:12]}  Bd1 {[%clk 0:00:10]} 47. Ke1 {[%clk 0:00:12]}  Bf3 {[%clk 0:00:10]} 48. Kd2 {[%clk 0:00:11]}  Be5 {[%clk 0:00:10]} 49. Ng6 {[%clk 0:00:10]}  Bc7 {[%clk 0:00:10]} 50. Nf8 {[%clk 0:00:09]}  Ba5+ {[%clk 0:00:10]} 51. Kc2 {[%clk 0:00:09]}  d3+ {[%clk 0:00:10]} 52. Kb1 {[%clk 0:00:09]}  Kd5 {[%clk 0:00:10]} 53. Bg5 {[%clk 0:00:07]}  Be1 {[%clk 0:00:10]} 54. Be3 {[%clk 0:00:07]}  c4 {[%clk 0:00:09]} 55. Ng6 {[%clk 0:00:06]}  Bb4 {[%clk 0:00:09]} 56. Nf4+ {[%clk 0:00:06]}  Kc6 {[%clk 0:00:08]} 57. Ne6 {[%clk 0:00:06]}  Bd6 {[%clk 0:00:07]} 58. Nd4+ {[%clk 0:00:06]}  Kd5 {[%clk 0:00:08]} 59. Nxf3 {[%clk 0:00:06]}  exf3 {[%clk 0:00:08]} 60. Kc1 {[%clk 0:00:07]}  Be5 {[%clk 0:00:07]} 61. Bg5 {[%clk 0:00:06]}  Bd4 {[%clk 0:00:07]} 62. Bd2 {[%clk 0:00:01]}  Bxf2 {[%clk 0:00:06]} 63. Bf4 {[%clk 0:00:01]}  Be1 {[%clk 0:00:06]} 64. Kd1 {[%clk 0:00:01]}  f2 {[%clk 0:00:06]} 0-1


[Site "https://www.chess.com"]